[Event "Serbian League Women 2024"]
[Site "Bajina Basta"]
[Date "2024.10.02"]
[Round "6.12"]
[White "Petrovic, Marija"]
[Black "Mijic, Sara"]
[Result "0-1"]
[ECO "D02"]
[WhiteElo "1898"]
[BlackElo "1993"]
[Annotator "NA RC"]
[PlyCount "78"]
[EventDate "2024.09.26"]
[EventType "team-tourn"]
[EventCountry "SRB"]
[SourceTitle "playchess.com"]
[Source "ChessBase"]
[SourceQuality "1"]
[TimeControl "40/5400+30:1800+30"]

1. Nf3 {[%emt 0:02:20]} d5 {[%emt 0:00:59]} 2. b3 {[%emt 0:00:20]} c5 {[%emt 0:03:14]} 3. e3 {[%emt 0:00:08]} Nc6 {[%emt 0:00:28]} 4. d4 {[%emt 0:00:41]} Bf5 {[%emt 0:01:13]} 5. Bb2 {[%emt 0:00:07]} e6 {[%emt 0:02:12]} 6. a3 {[%emt 0:00:10]} Nf6 {[%emt 0:01:27]} 7. Be2 {[%emt 0:00:11]} Bd6 {[%emt 0:02:10]} 8. dxc5 {[%emt 0:01:46]} Bxc5 {[%emt 0:00:14]} 9. Nbd2 $15 {[%emt 0:00:08]} (9. b4 $11 Be7 10. Nbd2) 9... O-O {[%emt 0:05:25]} 10. O-O {[%emt 0:00:10]} (10. b4 $142 Bb6 11. O-O) 10... d4 {[%emt 0:02:04]} 11. exd4 {[%emt 0:01:40]} Nxd4 {[%emt 0:00:11]} 12. b4 {[%emt 0:03:44]} Bxc2 {[%emt 0:01:52]} 13. Qe1 {[%emt 0:00:18]} Nxe2+ {[%emt 0:05:15]} 14. Qxe2 {[%emt 0:00:07]} Bd3 {[%emt 0:00:18]} 15. Qe1 {[%emt 0:16:14]} Bb6 {[%emt 0:04:33]} 16. Qe5 {[%emt 0:02:02]} Bxf1 17. Rxf1 {[%emt 0:00:08]} Qd5 {[%emt 0:01:52]} 18. Qg3 {[%emt 0:01:47]} Qf5 {[%emt 0:05:35]} 19. Nc4 {[%emt 0:03:24]} Rfd8 {[%emt 0:04:35]} 20. Qh4 {[%emt 0:03:18]} Rac8 {[%emt 0:03:37]} 21. Nxb6 {[%emt 0:12:30]} axb6 {[%emt 0:00:08]} 22. Bd4 {[%emt 0:00:27]} Nd5 {[%emt 0:07:13]} 23. Qg3 {[%emt 0:03:43]} f6 {[%emt 0:02:02]} 24. h3 {[%emt 0:04:52]} Nf4 {[%emt 0:00:42]} 25. Re1 {[%emt 0:02:11]} Rc1 {[%emt 0:00:49]} 26. Rxc1 {[%emt 0:03:54]} Ne2+ {[%emt 0:00:06]} 27. Kh2 {[%emt 0:00:04]} Nxg3 {[%emt 0:00:05]} 28. fxg3 {[%emt 0:00:02]} Qb5 {[%emt 0:00:38]} 29. Bf2 {[%emt 0:00:39]} e5 {[%emt 0:00:22]} 30. g4 {[%emt 0:00:21]} e4 {[%emt 0:00:28]} 31. Ne1 {[%emt 0:04:51]} h6 {[%emt 0:00:14]} 32. Bg3 {[%emt 0:04:02]} Qe2 {[%emt 0:00:08]} 33. Rc7 {[%emt 0:03:37]} Rd1 {[%emt 0:00:38]} 34. Rc8+ {[%emt 0:02:45]} Kh7 {[%emt 0:00:13]} 35. Nc2 {[%emt 0:00:32]} Qf1 {[%emt 0:00:13]} 36. Bb8 {[%emt 0:01:59]} Qg1+ {[%emt 0:00:09]} 37. Kg3 {[%emt 0:00:12]} Rd3+ {[%emt 0:00:30]} 38. Kf4 {[%emt 0:00:59]} Qxg2 {[%emt 0:00:42]} 39. Kf5 {[%emt 0:00:16]} e3 {[%emt 0:00:27]} 0-1

[Event "Serbian League Women 2024"]
[Site "Bajina Basta"]
[Date "2024.10.02"]
[Round "6.13"]
[White "Chelushkina, Irina"]
[Black "Bivol, Alina"]
[Result "0-1"]
[ECO "B01"]
[WhiteElo "2167"]
[BlackElo "2345"]
[Annotator "TA"]
[PlyCount "66"]
[EventDate "2024.09.26"]
[EventType "team-tourn"]
[EventCountry "SRB"]
[SourceTitle "playchess.com"]
[Source "ChessBase"]
[SourceQuality "1"]
[TimeControl "40/5400+30:1800+30"]

{[%evp 9,66,30,35,8,13,-4,8,-47,-34,-27,-18,-25,-23,-31,-41,-37,-45,-37,-43,-36,-35,-54,-56,-66,-52,-64,-70,-90,-81,-86,-78,-119,-120,-131,-125,-115,-149,-116,-102,-102,-101,-104,-109,-163,-103,-249,-251,-362,-390,-389,-388,-433,-428,-362,-374,-29986,-29987,-29987,-29988]} 1. e4 {[%emt 0:00:04]} d5 {[%emt 0:00:36]} 2. exd5 {[%emt 0:01:11]} Qxd5 {[%emt 0:00:06]} 3. Nf3 {[%emt 0:00:26]} Bg4 {[%emt 0:00:07]} 4. Be2 {[%emt 0:00:11]} Nc6 {[%emt 0:00:29]} 5. O-O {[%emt 0:01:41]} O-O-O {[%emt 0:03:10]} 6. Nc3 {[%emt 0:00:07]} Qd7 {[%emt 0:01:43]} 7. d3 {[%emt 0:01:25]} e5 {[%emt 0:02:09]} 8. Be3 {[%emt 0:00:14]} (8. Re1 $11) 8... f5 {[%emt 0:02:43]} 9. h3 {[%emt 0:01:52]} Bxf3 {[%emt 0:00:24]} 10. Bxf3 {[%emt 0:00:06]} Nd4 {[%emt 0:04:46]} 11. Re1 {[%emt 0:05:21]} Nf6 {[%emt 0:02:02]} 12. Bxd4 {[%emt 0:15:09]} exd4 {[%emt 0:00:48]} 13. Ne2 {[%emt 0:00:20][%cal Bc3e2,Be2g3,Bg3f5][%mdl 32]} g5 {[%emt 0:01:26]} 14. Ng3 {[%emt 0:00:41]} Bd6 {[%emt 0:02:48] Wards off Re5} 15. Qd2 {[%emt 0:02:18]} g4 {[%emt 0:07:43]} 16. hxg4 {[%emt 0:05:13]} fxg4 {[%emt 0:00:25]} 17. Be4 {[%emt 0:00:32] Strongly threatening Bf5.} Kb8 {[%emt 0:00:29]} 18. Qh6 {[%emt 0:02:49]} Rhf8 {[%emt 0:13:51]} 19. Nf5 {[%emt 0:08:38]} Bb4 {[%emt 0:02:20][%cal Of6e4]} 20. Re2 {[%emt 0:05:22]} Nxe4 {[%emt 0:03:32]} 21. dxe4 {[%emt 0:03:33]} Qb5 {[%emt 0:01:44]} 22. Ng3 {[%emt 0:01:16][%cal Oa1d1]} Bd6 {[%emt 0:10:07] aiming for ...Bxg3. Black is more active.} 23. Rae1 {[%emt 0:01:42]} Bxg3 {[%emt 0:04:40]} 24. fxg3 {[%emt 0:00:06]} Qc5 $36 {[%emt 0:01:04][%mdl 2048] Dodges e5. ...d3+ would now be deadly. Black is really pushing.} 25. Kh2 {[%emt 0:04:08][%cal Oe4e5]} Qe5 {[%emt 0:01:02]} 26. Kg1 {[%emt 0:13:29] [#]} (26. Qd2 $17) 26... a6 {[%emt 0:01:59]} ({But not} 26... Qxg3 27. e5 $11) ({Black should play} 26... Rf6 $1 $19 {[%cal Rf6h6]} 27. Qh4 Rdf8) 27. Qh4 {[%emt 0:03:02] This move loses the game for White.} (27. Qd2 $17) 27... Rd6 $19 {[%emt 0:06:43] ...Qc5 is the strong threat.} 28. Rf1 {[%emt 0:03:07]} (28. a4 $142) 28... Rxf1+ {[%emt 0:00:36]} 29. Kxf1 {[%emt 0:00:01]} h5 {[%emt 0:01:04] White must now prevent ...d3.} 30. Kg1 {[%emt 0:02:34]} d3 {[%emt 0:06:02]} 31. cxd3 {[%emt 0:01:10]} Rxd3 {[%emt 0:00:13] ( -> ...Rd1+)} 32. Rf2 $2 {[%emt 0:05:26]} (32. Re1 $19) 32... Rd1+ {[%emt 0:00:28]} 33. Kh2 {[%emt 0:00:01] [#]} Qc5 $1 {[%emt 0:00:50] Weighted Error Value: White=0.49/Black=0.04 (flawless) .  Mistake:       	White=5     	Black=1      Inaccurate:     	White=1     	---        OK:         	White=9     	Black=14     Best:        	White=1     	Black=4} 0-1

[Event "Serbian League Women 2024"]
[Site "Bajina Basta"]
[Date "2024.10.02"]
[Round "6.14"]
[White "Velikic, Adela"]
[Black "Borisova, Ekaterina"]
[Result "1-0"]
[ECO "E65"]
[WhiteElo "2260"]
[BlackElo "2205"]
[Annotator "TA"]
[PlyCount "79"]
[EventDate "2024.09.26"]
[EventType "team-tourn"]
[EventCountry "SRB"]
[SourceTitle "playchess.com"]
[Source "ChessBase"]
[SourceQuality "1"]
[TimeControl "40/5400+30:1800+30"]

{[%evp 19,79,16,28,18,25,-19,-25,-60,-35,-46,-30,-37,-46,-58,-52,-72,-41,-47,-21,-1,0,0,0,0,4,1,62,56,60,50,74,70,329,-43,448,447,445,446,516,500,583,583,598,544,534,543,509,500,529,511,591,547,564,558,602,553,618,579,576,547,535,527]} 1. c4 {[%emt 0:00:03]} c5 {[%emt 0:00:10]} 2. Nc3 {[%emt 0:00:08]} Nc6 {[%emt 0:00:22]} 3. Nf3 {[%emt 0:00:17]} g6 {[%emt 0:00:25]} 4. g3 {[%emt 0:00:36]} Bg7 {[%emt 0:00:09]} 5. Bg2 {[%emt 0:00:06]} Nf6 {[%emt 0:00:07]} 6. O-O {[%emt 0:00:23]} O-O {[%emt 0:00:05]} 7. d4 {[%emt 0:00:10]} d6 {[%emt 0:00:12]} 8. dxc5 {[%emt 0:02:40]} dxc5 {[%emt 0:00:05]} 9. Be3 {[%emt 0:00:18]} Be6 {[%emt 0:00:08]} 10. Qa4 {[%emt 0:00:23]} Nd7 {[%emt 0:00:09]} 11. Ng5 {[%emt 0:05:21]} Bg4 {[%emt 0:00:53]} 12. Nge4 {[%emt 0:45:06]} Nd4 {[%emt 0:08:38]} 13. Rfd1 {[%emt 0:15:25] Black has an edge.} Bxe2 {[%emt 0:15:17]} 14. Nxe2 {[%emt 0:01:17]} Nxe2+ {[%emt 0:00:19]} 15. Kh1 {[%emt 0:02:01]} Nd4 {[%emt 0:01:58]} 16. Rac1 {[%emt 0:00:50]} a5 {[%emt 0:10:39]} 17. Bh3 {[%emt 0:07:54]} f5 {[%emt 0:06:32] ...Nb6 would now be deadly.} 18. Ng5 {[%emt 0:04:22]} Nb6 {[%emt 0:04:01] Excellent horsemanship.} 19. Qa3 {[%emt 0:12:40]} Qd6 {[%emt 0:00:59] Dodges Ne6} 20. Bg2 {[%emt 0:00:00]} e5 {[%emt 0:12:17]} 21. Bxb7 {[%emt 0:00:00]} Ra7 {[%emt 0:00:10]} 22. Bg2 {[%emt 0:00:00][%cal Ob2b4]} e4 {[%emt 0:03:09]} (22... h6 $11 23. Nf3 Qe7) 23. f3 $1 $14 {[%emt 0:00:00]} h6 {[%emt 0:01:23]} 24. Nh3 {[%emt 0:01:06]} exf3 {[%emt 0:04:58]} 25. Bxf3 {[%emt 0:00:01] Strongly threatening Bxd4.} g5 $2 {[%emt 0:00:36][%mdl 8192]} (25... Kh7 $14) 26. Nf2 $2 {[%emt 0:00:42]} ({White must play} 26. Bxd4 $18 Bxd4 27. Bd5+ Nxd5 28. Rxd4) 26... Re8 $2 {[%emt 0:05:38][%mdl 8192]} (26... Qg6 $15 {stays ahead.} 27. Bxd4 Bxd4) 27. Bxd4 $18 {[%emt 0:01:22] White is clearly winning.} Bxd4 {[%emt 0:07:15] [#]} 28. Bd5+ $1 {[%emt 0:00:08][%mdl 512]} Nxd5 {[%emt 0:11:59]} (28... Kg7 29. Rxd4) 29. Rxd4 {[%emt 0:00:04]} Re2 {[%emt 0:02:48]} 30. Rxd5 {[%emt 0:00:35]} Qb6 {[%emt 0:00:05]} 31. Rxf5 {[%emt 0:01:22]} Qxb2 {[%emt 0:00:18]} 32. Qxb2 {[%emt 0:00:10]} ({And not} 32. Qxc5 Qxc1+ 33. Kg2 Qb1 34. Qf8+ Kh7 35. Rf7+ Rxf7 36. Qxf7+ Kh8 37. Qf8+ Kh7 38. Qf7+ Kh8 39. Qf8+ Kh7 40. Qf7+ $11) 32... Rxb2 {[%emt 0:00:03]} 33. a3 {[%emt 0:00:31]} Rd7 {[%emt 0:00:29]} 34. Kg1 {[%emt 0:00:52]} Rdd2 {[%emt 0:00:24]} 35. Rc3 {[%emt 0:00:24]} a4 {[%emt 0:00:12]} 36. Rcf3 {[%emt 0:00:25]} Rb3 {[%emt 0:00:23]} 37. Kg2 {[%emt 0:00:38]} Ra2 {[%emt 0:00:24]} 38. Rxc5 {[%emt 0:00:31]} Rxf3 {[%emt 0:00:11]} 39. Kxf3 {[%emt 0:00:02]} Rxa3+ {[%emt 0:00:05]} 40. Ke4 {[%emt 0:00:30] Weighted Error Value: White=0.31/Black=0.58.  Loses game:     	---       	Black=2      Missed win:     	White=1     	---        Mistake:       	---       	Black=1      Inaccurate:     	White=2     	Black=2      OK:         	White=9     	Black=7      Best:        	White=3     	Black=2      Strong:       	White=1     	---        Brilliant:      	White=1     	---} 1-0

[Event "Serbian League Women 2024"]
[Site "Bajina Basta"]
[Date "2024.10.02"]
[Round "6.15"]
[White "Mihailova, Alina"]
[Black "Zhurova, Anna"]
[Result "0-1"]
[ECO "A50"]
[WhiteElo "1969"]
[BlackElo "2199"]
[Annotator "RC"]
[PlyCount "110"]
[EventDate "2024.09.26"]
[EventType "team-tourn"]
[EventCountry "SRB"]
[SourceTitle "playchess.com"]
[Source "ChessBase"]
[SourceQuality "1"]
[TimeControl "40/5400+30:1800+30"]

1. d4 {[%emt 0:00:10]} Nf6 {[%emt 0:00:14]} 2. c4 {[%emt 0:00:08]} b6 {[%emt 0:00:06]} 3. Nf3 {[%emt 0:02:05]} Bb7 {[%emt 0:00:06]} 4. g3 {[%emt 0:00:11]} g6 {[%emt 0:00:03]} 5. Bg2 {[%emt 0:00:05]} Bg7 {[%emt 0:00:04]} 6. O-O {[%emt 0:00:54]} O-O {[%emt 0:00:05]} 7. Nc3 {[%emt 0:04:35]} Ne4 {[%emt 0:00:09]} 8. Nxe4 {[%emt 0:10:08]} Bxe4 {[%emt 0:00:06]} 9. b3 {[%emt 0:00:11]} c5 {[%emt 0:01:53]} 10. Bb2 {[%emt 0:01:07]} Nc6 {[%emt 0:00:55]} 11. e3 {[%emt 0:00:26]} d5 {[%emt 0:01:03]} 12. Ne5 {[%emt 0:29:45]} Nxe5 {[%emt 0:01:11]} 13. dxe5 {[%emt 0:01:02]} Bxg2 {[%emt 0:00:22]} 14. Kxg2 {[%emt 0:00:07]} dxc4 {[%emt 0:00:06]} 15. bxc4 {[%emt 0:04:00]} Qc7 {[%emt 0:00:09]} 16. Qd5 {[%emt 0:00:24]} Rad8 {[%emt 0:01:20]} 17. Qe4 {[%emt 0:00:19]} Qd7 {[%emt 0:01:18]} 18. Qc2 {[%emt 0:27:48]} Qe6 {[%emt 0:14:15]} 19. f4 {[%emt 0:04:30]} Rd7 {[%emt 0:00:59]} 20. Rad1 {[%emt 0:01:01]} Rfd8 {[%emt 0:00:14]} 21. Rxd7 {[%emt 0:00:29]} Qxd7 {[%emt 0:00:26]} 22. Rf2 {[%emt 0:00:33]} e6 {[%emt 0:08:52]} 23. e4 {[%emt 0:03:35]} Bh6 {[%emt 0:04:11]} 24. g4 {[%emt 0:05:48]} Qd3 {[%emt 0:01:25]} 25. g5 {[%emt 0:01:00]} Qxc2 {[%emt 0:02:47]} 26. Rxc2 {[%emt 0:00:03]} Bf8 {[%emt 0:00:09]} 27. Re2 {[%emt 0:02:43]} Be7 {[%emt 0:01:14]} 28. h4 {[%emt 0:00:31]} Rd3 {[%emt 0:01:27]} 29. Ba1 {[%emt 0:00:39]} Kf8 {[%emt 0:00:39]} 30. Bb2 {[%emt 0:00:19]} Ke8 {[%emt 0:00:18]} 31. Kf2 {[%emt 0:00:44]} Rh3 {[%emt 0:02:41]} 32. Kg2 {[%emt 0:00:14]} Rxh4 {[%emt 0:01:16]} 33. Bc1 {[%emt 0:00:36]} h6 {[%emt 0:00:57]} 34. gxh6 {[%emt 0:00:18]} Rxh6 {[%emt 0:00:30]} 35. Kg3 {[%emt 0:00:48]} Rh1 {[%emt 0:00:09]} 36. Be3 {[%emt 0:00:36]} Kd7 {[%emt 0:09:38]} 37. Rd2+ {[%emt 0:00:30]} Kc6 {[%emt 0:00:18]} 38. Kg4 {[%emt 0:00:10]} a6 {[%emt 0:00:52]} 39. Rc2 {[%emt 0:00:36]} b5 {[%emt 0:04:30]} 40. Bf2 {[%emt 0:00:26]} Rh8 {[%emt 0:05:03]} 41. Bg3 {[%emt 0:05:32]} Rd8 {[%emt 0:01:13]} 42. Bf2 {[%emt 0:03:38]} bxc4 {[%emt 0:03:50]} 43. a4 {[%emt 0:00:38]} Rb8 {[%emt 0:00:33]} 44. Be1 {[%emt 0:01:04]} Rb1 {[%emt 0:06:35]} 45. Ba5 {[%emt 0:01:40]} Rd1 {[%emt 0:02:07]} 46. Rxc4 {[%emt 0:06:48]} Rd4 {[%emt 0:00:40]} 47. Rxd4 {[%emt 0:00:09]} cxd4 {[%emt 0:00:02]} 48. f5 {[%emt 0:01:37]} gxf5+ {[%emt 0:01:21]} 49. exf5 {[%emt 0:00:02]} Kd5 {[%emt 0:00:18]} 50. Kf4 {[%emt 0:00:26]} Bf8 {[%emt 0:00:28]} 51. fxe6 {[%emt 0:00:30]} fxe6 {[%emt 0:00:06]} 52. Bc7 {[%emt 0:00:45]} Bh6+ {[%emt 0:00:06]} 53. Kf3 {[%emt 0:00:03]} d3 {[%emt 0:00:22]} 54. Kf2 {[%emt 0:00:11]} Ke4 {[%emt 0:00:05]} 55. Ke1 {[%emt 0:00:05]} Bf4 {[%emt 0:00:05]} 0-1

[Event "Serbian League Women 2024"]
[Site "Bajina Basta"]
[Date "2024.10.02"]
[Round "6.16"]
[White "Srdanovic, Jovana"]
[Black "Stankovic, Andrea"]
[Result "1-0"]
[ECO "E01"]
[WhiteElo "2142"]
[BlackElo "1856"]
[Annotator "NA RC"]
[PlyCount "59"]
[EventDate "2024.09.26"]
[EventType "team-tourn"]
[EventCountry "SRB"]
[SourceTitle "playchess.com"]
[Source "ChessBase"]
[SourceQuality "1"]
[TimeControl "40/5400+30:1800+30"]

1. d4 {[%emt 0:00:03]} Nf6 {[%emt 0:00:04]} 2. c4 {[%emt 0:00:22]} e6 {[%emt 0:00:05]} 3. g3 {[%emt 0:00:11]} Bb4+ {[%emt 0:00:08]} 4. Nd2 {[%emt 0:00:14]} O-O {[%emt 0:00:24]} 5. Bg2 {[%emt 0:00:19]} d5 {[%emt 0:01:19]} 6. Ngf3 {[%emt 0:02:15]} Ne4 {[%emt 0:07:04]} 7. O-O {[%emt 0:04:57]} Nc6 {[%emt 0:09:41]} 8. e3 {[%emt 0:03:10]} b6 $16 {[%emt 0:09:31]} (8... Bd6 $14) 9. Qc2 {[%emt 0:14:36]} Nxd2 {[%emt 0:02:59]} 10. Bxd2 {[%emt 0:02:19]} Bb7 {[%emt 0:04:32]} 11. cxd5 {[%emt 0:04:33]} exd5 {[%emt 0:02:56]} 12. Ne5 {[%emt 0:03:23]} Qd6 {[%emt 0:02:50]} 13. Nxc6 {[%emt 0:00:39]} Bxd2 {[%emt 0:02:37]} 14. Bxd5 {[%emt 0:01:21]} Kh8 {[%emt 0:05:57]} 15. Bg2 {[%emt 0:00:36]} Bxc6 {[%emt 0:11:22]} 16. Bxc6 {[%emt 0:01:02]} Rab8 {[%emt 0:00:04]} 17. a3 {[%emt 0:02:10]} b5 {[%emt 0:01:47]} 18. b4 {[%emt 0:03:27]} a5 {[%emt 0:00:06]} 19. Qxd2 {[%emt 0:16:32]} Qxc6 {[%emt 0:00:08]} 20. Rfc1 {[%emt 0:00:06]} Qb7 {[%emt 0:01:31]} 21. bxa5 {[%emt 0:00:29]} c6 {[%emt 0:03:31]} 22. Qb4 {[%emt 0:00:32]} Qa6 {[%emt 0:01:08]} 23. a4 {[%emt 0:04:18]} bxa4 {[%emt 0:02:29]} 24. Qxa4 {[%emt 0:00:45]} Rb5 {[%emt 0:00:44]} 25. Qc4 {[%emt 0:00:18]} Rc8 {[%emt 0:00:59]} 26. Qxf7 {[%emt 0:04:15]} Rxa5 {[%emt 0:00:26]} 27. Rxa5 {[%emt 0:00:32]} Qxa5 {[%emt 0:00:10]} 28. Qe6 {[%emt 0:02:04]} Qa8 {[%emt 0:01:33]} 29. Rc5 {[%emt 0:02:28]} Rf8 {[%emt 0:03:29]} 30. Qxc6 {[%emt 0:01:25]} 1-0

[Event "Serbian League Women 2024"]
[Site "Bajina Basta"]
[Date "2024.10.02"]
[Round "6.17"]
[White "Gaponenko, Inna"]
[Black "Osmak, Yuliia"]
[Result "1/2-1/2"]
[ECO "B22"]
[WhiteElo "2324"]
[BlackElo "2471"]
[Annotator "TA"]
[PlyCount "106"]
[EventDate "2024.09.26"]
[EventType "team-tourn"]
[EventCountry "SRB"]
[SourceTitle "playchess.com"]
[Source "ChessBase"]
[SourceQuality "1"]
[TimeControl "40/5400+30:1800+30"]

{[%evp 13,106,39,40,30,32,7,0,4,5,-2,2,-4,0,-27,-12,-28,-25,-36,-19,-34,0,-17,-4,-14,0,0,5,0,0,-4,-16,-13,-16,-12,-9,-20,-20,-19,-25,-37,-47,-67,-65,-58,-16,-20,0,0,0,0,-8,0,0,-77,-74,-53,-58,-47,-56,-68,-41,-75,-85,-80,-86,-89,0,-7,0,0,0,0,0,0,0,0,0,0,0,0,0,0,0,0,0,0,2,2,4,0,0,0,0,0,0]} 1. e4 {[%emt 0:00:04]} c5 {[%emt 0:00:08]} 2. c3 {[%emt 0:00:13]} d5 {[%emt 0:00:14]} 3. exd5 {[%emt 0:00:06]} Qxd5 {[%emt 0:00:02]} 4. d4 {[%emt 0:00:06]} Nf6 {[%emt 0:00:05][%cal Bg8f6,Bf6d5,Bd5e3][%mdl 32]} 5. Nf3 {[%emt 0:00:04]} e6 {[%emt 0:00:04]} 6. Na3 {[%emt 0:00:15]} Qd8 {[%emt 0:00:04]} 7. Nc4 {[%emt 0:06:56]} Nc6 {[%emt 0:00:40]} 8. Be3 {[%emt 0:02:04]} Nd5 {[%emt 0:00:08]} 9. dxc5 {[%emt 0:13:11] Black should prevent Qd2.} Nxe3 {[%emt 0:00:12]} 10. Qxd8+ {[%emt 0:00:07]} Nxd8 {[%emt 0:00:11]} 11. fxe3 {[%emt 0:29:15] aiming for b4.} Bxc5 {[%emt 0:00:15]} 12. b4 {[%emt 0:00:05]} Be7 {[%emt 0:00:51]} 13. O-O-O {[%emt 0:00:11]} f6 {[%emt 0:01:37]} 14. Kb2 {[%emt 0:10:32]} Bd7 {[%emt 0:13:06]} 15. Rd2 {[%emt 0:23:12]} Nf7 {[%emt 0:02:50]} 16. Bd3 {[%emt 0:01:15][%cal Bf1d3,Bd3c2,Bc2b3][%mdl 32]} O-O-O {[%emt 0:03:17]} 17. Rhd1 {[%emt 0:00:27]} g6 {[%emt 0:11:32]} 18. Bc2 {[%emt 0:03:24]} Kc7 {[%emt 0:02:43]} (18... e5 {simplifies} 19. e4 Bc6 20. Na5 Rxd2 21. Nxd2 Bd7) 19. Bb3 {[%emt 0:00:28]} Rhe8 {[%emt 0:16:51]} 20. Rxd7+ {[%emt 0:06:58]} Rxd7 {[%emt 0:00:08]} 21. Rxd7+ {[%emt 0:00:01]} Kxd7 {[%emt 0:00:06]} 22. Ba4+ {[%emt 0:00:01]} Kd8 {[%emt 0:00:07]} 23. Bxe8 {[%emt 0:00:06]} Kxe8 $11 {[%emt 0:00:04][%mdl 4096] Endgame. KBN-KNN} 24. Na5 {[%emt 0:02:19]} Nd6 {[%emt 0:01:48]} 25. Nd2 {[%emt 0:01:01]} Kd7 {[%emt 0:00:53]} 26. Kc2 {[%emt 0:00:01]} f5 {[%emt 0:08:22]} 27. Kd3 {[%emt 0:00:58]} e5 {[%emt 0:01:27]} 28. e4 {[%emt 0:00:19]} Bg5 {[%emt 0:00:56] ...Bxd2 is the strong threat.} 29. Nac4 {[%emt 0:00:19]} Bxd2 {[%emt 0:02:51]} 30. Nxd2 {[%emt 0:00:01] KN-KN} b5 {[%emt 0:01:36] [#] Hoping for ...Nxe4.} 31. exf5 {[%emt 0:01:20]} gxf5 {[%emt 0:00:06]} 32. c4 $1 {[%emt 0:00:07]} a6 {[%emt 0:16:30]} 33. cxb5 {[%emt 0:00:22]} (33. a3 $11) 33... axb5 $17 {[%emt 0:00:09]} 34. Nb1 {[%emt 0:00:04]} Ne4 {[%emt 0:02:27]} 35. Na3 $1 {[%emt 0:00:36]} Kc6 {[%emt 0:00:22]} 36. Nc2 {[%emt 0:00:34]} Nf2+ {[%emt 0:01:48]} 37. Ke2 {[%emt 0:00:15] [#]} Ng4 {[%emt 0:00:20]} 38. h3 {[%emt 0:00:04]} Nf6 {[%emt 0:00:04]} 39. Kd3 {[%emt 0:01:27]} f4 {[%emt 0:03:39] Inhibits Ne3.} (39... Nd5 $17 {And now ...Nf4+ would win.} 40. g3 Kd7) 40. Na3 {[%emt 0:00:25] The position is equal.} h5 {[%emt 0:05:34]} 41. h4 {[%emt 0:15:32]} Kb6 {[%emt 0:06:28]} 42. Nb1 {[%emt 0:00:31]} Kc7 {[%emt 0:01:23]} 43. Nc3 {[%emt 0:00:43]} Kc6 {[%emt 0:00:06]} 44. a3 {[%emt 0:05:01]} Nd5 {[%emt 0:03:14] Strongly threatening ...Nxc3.} 45. Ne4 {[%emt 0:00:38]} Kd7 {[%emt 0:00:19]} 46. Nc5+ {[%emt 0:04:46]} Kd6 {[%emt 0:00:33]} 47. Ke4 {[%emt 0:00:25]} Nc3+ {[%emt 0:07:47]} 48. Kd3 {[%emt 0:00:23]} Nd1 {[%emt 0:02:10]} 49. Ke4 {[%emt 0:00:29]} Nf2+ {[%emt 0:04:24]} 50. Kf3 {[%emt 0:00:07]} Ng4 {[%emt 0:08:01]} 51. Ke4 {[%emt 0:00:22]} Nf2+ {[%emt 0:01:02]} 52. Kf3 {[%emt 0:00:05]} Ng4 {[%emt 0:01:49]} 53. Ke4 {[%emt 0:00:04]} Nf2+ {[%emt 0:00:03] Weighted Error Value: White=0.07 (flawless) /Black=0.06 (flawless) .  Mistake:       	White=1     	Black=1      Inaccurate:     	White=1     	Black=3      OK:         	White=19    	Black=19     Best:        	White=4     	Black=3      Strong:       	White=2     	---} 1/2-1/2